[Event "Early-Titled-Tuesday-Blitz-October-03-2023"]
[Site "Chess.com"]
[Date "2023.10.03"]
[Round "3"]
[White "ArtemDyachuk"]
[Black "Fandorine"]
[Result "0-1"]
[WhiteElo "2684"]
[BlackElo "2929"]
[TimeControl "180+1"]
[EndTime "8:29:14 PDT"]
[Termination "Fandorine won by checkmate"]

1. e4 {[%clk 0:03:00.9]} 1... g6 {[%clk 0:02:50.7]} 2. d4 {[%clk 0:03:00.2]}
2... Bg7 {[%clk 0:02:51.3]} 3. Nc3 {[%clk 0:03:00.6]} 3... d6 {[%clk 0:02:51.9]}
4. Be3 {[%clk 0:02:55.1]} 4... a6 {[%clk 0:02:51.4]} 5. Qd2 {[%clk 0:02:54]}
5... b5 {[%clk 0:02:50.9]} 6. a4 {[%clk 0:02:52.4]} 6... b4 {[%clk 0:02:50.6]}
7. Nd1 {[%clk 0:02:52.7]} 7... a5 {[%clk 0:02:48.2]} 8. c3 {[%clk 0:02:52.5]}
8... Nf6 {[%clk 0:02:46.1]} 9. f3 {[%clk 0:02:52.2]} 9... O-O {[%clk 0:02:44.3]}
10. Bd3 {[%clk 0:02:48.6]} 10... Ba6 {[%clk 0:02:36.7]} 11. Nf2 {[%clk
0:02:39.5]} 11... c5 {[%clk 0:02:27.3]} 12. Bxa6 {[%clk 0:02:23]} 12... bxc3
{[%clk 0:02:15.5]} 13. bxc3 {[%clk 0:02:22.5]} 13... cxd4 {[%clk 0:02:15.8]} 14.
cxd4 {[%clk 0:02:21.6]} 14... Nxa6 {[%clk 0:02:15.9]} 15. Ne2 {[%clk 0:02:20.1]}
15... Nb4 {[%clk 0:02:06.1]} 16. O-O {[%clk 0:02:19.6]} 16... Qb6 {[%clk
0:02:06]} 17. Ng3 {[%clk 0:01:58.1]} 17... Rac8 {[%clk 0:01:54.6]} 18. Rfc1
{[%clk 0:01:57.1]} 18... Qa6 {[%clk 0:01:48.8]} 19. h4 {[%clk 0:01:29]} 19...
Rxc1+ {[%clk 0:01:28.4]} 20. Rxc1 {[%clk 0:01:28.2]} 20... Rc8 {[%clk
0:01:29.3]} 21. h5 {[%clk 0:01:15.1]} 21... Nxh5 {[%clk 0:01:21.9]} 22. Nxh5
{[%clk 0:01:12.3]} 22... gxh5 {[%clk 0:01:22.8]} 23. Bh6 {[%clk 0:01:05.8]}
23... f6 {[%clk 0:00:59.5]} 24. Bxg7 {[%clk 0:00:36.5]} 24... Kxg7 {[%clk
0:01:00.4]} 25. Rxc8 {[%clk 0:00:33.3]} 25... Qxc8 {[%clk 0:01:00.2]} 26. Qf4
{[%clk 0:00:34.2]} 26... Qc2 {[%clk 0:00:51]} 27. Qg3+ {[%clk 0:00:31.3]} 27...
Kf7 {[%clk 0:00:50.1]} 28. Qh3 {[%clk 0:00:26.9]} 28... Qc1+ {[%clk 0:00:49.3]}
29. Kh2 {[%clk 0:00:27]} 29... Qf4+ {[%clk 0:00:47.1]} 30. Kg1 {[%clk
0:00:26.9]} 30... h4 {[%clk 0:00:42.8]} 31. Qc8 {[%clk 0:00:21.6]} 31... Qe3
{[%clk 0:00:35.2]} 32. Qc4+ {[%clk 0:00:18.8]} 32... d5 {[%clk 0:00:32.6]} 33.
exd5 {[%clk 0:00:12.6]} 33... Qe1+ {[%clk 0:00:32.9]} 34. Kh2 {[%clk 0:00:13]}
34... Qxf2 {[%clk 0:00:23.3]} 35. d6+ {[%clk 0:00:13.5]} 35... Kg7 {[%clk
0:00:16.6]} 36. d7 {[%clk 0:00:06.5]} 36... Qg3+ {[%clk 0:00:17.2]} 37. Kh1
{[%clk 0:00:06.7]} 37... h3 {[%clk 0:00:17.6]} 38. Qe2 {[%clk 0:00:06.3]} 38...
Nc6 {[%clk 0:00:14.4]} 39. d5 {[%clk 0:00:05.8]} 39... Qxg2+ {[%clk 0:00:14.3]}
40. Qxg2+ {[%clk 0:00:03.2]} 40... hxg2+ {[%clk 0:00:15.2]} 41. Kg1 {[%clk
0:00:04]} 41... Nd8 {[%clk 0:00:15.9]} 42. d6 {[%clk 0:00:04.9]} 42... exd6
{[%clk 0:00:16.1]} 43. f4 {[%clk 0:00:05.8]} 43... Kf7 {[%clk 0:00:16.5]} 44. f5
{[%clk 0:00:06.4]} 44... Ke7 {[%clk 0:00:17.3]} 45. Kxg2 {[%clk 0:00:06.9]}
45... Kxd7 {[%clk 0:00:18]} 46. Kg3 {[%clk 0:00:07.8]} 46... Kc6 {[%clk
0:00:18.3]} 47. Kh4 {[%clk 0:00:08.7]} 47... Nf7 {[%clk 0:00:18.4]} 48. Kh5
{[%clk 0:00:09.6]} 48... Kd5 {[%clk 0:00:18.9]} 49. Kh4 {[%clk 0:00:09.4]} 49...
Kc4 {[%clk 0:00:19.5]} 50. Kh5 {[%clk 0:00:10.3]} 50... Kb4 {[%clk 0:00:20.2]}
51. Kh4 {[%clk 0:00:11.2]} 51... Kxa4 {[%clk 0:00:20.9]} 52. Kh5 {[%clk
0:00:12.1]} 52... Kb4 {[%clk 0:00:21.7]} 53. Kh4 {[%clk 0:00:13]} 53... Kc4
{[%clk 0:00:22.6]} 54. Kh5 {[%clk 0:00:13.9]} 54... Kd5 {[%clk 0:00:23.5]} 55.
Kh4 {[%clk 0:00:14.8]} 55... Ke5 {[%clk 0:00:24.2]} 56. Kh5 {[%clk 0:00:15.7]}
56... Kxf5 {[%clk 0:00:24.9]} 57. Kh4 {[%clk 0:00:16.6]} 57... a4 {[%clk
0:00:25.1]} 58. Kh5 {[%clk 0:00:17.5]} 58... a3 {[%clk 0:00:26]} 59. Kh4 {[%clk
0:00:18.4]} 59... a2 {[%clk 0:00:26.7]} 60. Kh5 {[%clk 0:00:19.3]} 60... a1=Q
{[%clk 0:00:27.4]} 61. Kh4 {[%clk 0:00:20.2]} 61... Qg1 {[%clk 0:00:26.5]} 62.
Kh5 {[%clk 0:00:21.1]} 62... Qh1# {[%clk 0:00:26.7]} 0-1

[Event "Early-Titled-Tuesday-Blitz-October-03-2023"]
[Site "Chess.com"]
[Date "2023.10.03"]
[Round "3"]
[White "Gurvich_Vitaly"]
[Black "ErikRonka"]
[Result "1-0"]
[WhiteElo "2733"]
[BlackElo "2480"]
[TimeControl "180+1"]
[EndTime "8:29:15 PDT"]
[Termination "Gurvich_Vitaly won on time"]

1. e4 {[%clk 0:02:56.1]} 1... c5 {[%clk 0:02:59.2]} 2. Nf3 {[%clk 0:02:54]} 2...
e6 {[%clk 0:02:59.7]} 3. d4 {[%clk 0:02:53.6]} 3... cxd4 {[%clk 0:03:00.6]} 4.
Nxd4 {[%clk 0:02:54.5]} 4... Nf6 {[%clk 0:03:01.2]} 5. Nc3 {[%clk 0:02:54.8]}
5... d6 {[%clk 0:03:01.6]} 6. g4 {[%clk 0:02:54]} 6... h6 {[%clk 0:03:01.4]} 7.
Rg1 {[%clk 0:02:52.9]} 7... Nc6 {[%clk 0:03:01.1]} 8. Be3 {[%clk 0:02:52.5]}
8... Be7 {[%clk 0:03:00.9]} 9. h4 {[%clk 0:02:48.2]} 9... d5 {[%clk 0:03:00.2]}
10. exd5 {[%clk 0:02:42.1]} 10... Nxd5 {[%clk 0:03:01.1]} 11. Nxd5 {[%clk
0:02:37.9]} 11... Qxd5 {[%clk 0:03:02]} 12. Nb5 {[%clk 0:02:24.9]} 12... Qe5
{[%clk 0:02:23.9]} 13. g5 {[%clk 0:01:40.7]} 13... hxg5 {[%clk 0:02:16.9]} 14.
hxg5 {[%clk 0:01:41.6]} 14... a6 {[%clk 0:01:53.6]} 15. Nd4 {[%clk 0:01:38.7]}
15... Bd7 {[%clk 0:01:40.2]} 16. Qg4 {[%clk 0:01:20.1]} 16... Qa5+ {[%clk
0:01:15]} 17. c3 {[%clk 0:01:12.6]} 17... O-O-O {[%clk 0:00:50.9]} 18. Nb3
{[%clk 0:00:43.1]} 18... Qc7 {[%clk 0:00:29.1]} 19. O-O-O {[%clk 0:00:42.1]}
19... Ne5 {[%clk 0:00:27.2]} 20. Qf4 {[%clk 0:00:38.6]} 20... Bc6 {[%clk
0:00:14.1]} 21. Be2 {[%clk 0:00:37.5]} 21... Bd6 {[%clk 0:00:12.4]} 22. Qd4
{[%clk 0:00:31.6]} 22... Nf3 {[%clk 0:00:10.3]} 23. Bxf3 {[%clk 0:00:12.1]}
23... Bxf3 {[%clk 0:00:11.2]} 24. Rd2 {[%clk 0:00:12.3]} 24... Bh2 {[%clk
0:00:10.3]} 25. Qa7 {[%clk 0:00:06.9]} 25... Bxg1 {[%clk 0:00:09.1]} 26. Nc5
{[%clk 0:00:01.9]} 26... Rxd2 {[%clk 0:00:05.9]} 27. Kxd2 {[%clk 0:00:02.8]}
27... Rd8+ {[%clk 0:00:05.2]} 28. Kc1 {[%clk 0:00:03.3]} 28... Qb8 {[%clk
0:00:05.6]} 29. Qb6 {[%clk 0:00:03.6]} 29... Rd6 {[%clk 0:00:05.7]} 30. Qb4
{[%clk 0:00:03.7]} 30... Qc7 {[%clk 0:00:05.5]} 31. a4 {[%clk 0:00:04]} 31...
Rc6 {[%clk 0:00:04.6]} 32. Nd3 {[%clk 0:00:03.8]} 32... Rd6 {[%clk 0:00:04.4]}
33. Bf4 {[%clk 0:00:03]} 33... Bd5 {[%clk 0:00:04.1]} 34. Bxd6 {[%clk
0:00:02.6]} 34... Qxd6 {[%clk 0:00:05]} 35. Qxd6 {[%clk 0:00:02.5]} 35... Bh2
{[%clk 0:00:02.6]} 36. Qf8+ {[%clk 0:00:02.5]} 36... Kd7 {[%clk 0:00:02.2]} 37.
Qxf7+ {[%clk 0:00:03]} 37... Kd6 {[%clk 0:00:02.6]} 38. Qxg7 {[%clk 0:00:03.7]}
1-0

[Event "Early-Titled-Tuesday-Blitz-October-03-2023"]
[Site "Chess.com"]
[Date "2023.10.03"]
[Round "3"]
[White "jasonbolivar"]
[Black "becemix"]
[Result "0-1"]
[WhiteElo "2253"]
[BlackElo "2510"]
[TimeControl "180+1"]
[EndTime "8:29:16 PDT"]
[Termination "becemix won on time"]

1. e4 {[%clk 0:03:00.9]} 1... c5 {[%clk 0:02:57.3]} 2. Nc3 {[%clk 0:03:00.5]}
2... Nc6 {[%clk 0:02:53.5]} 3. g4 {[%clk 0:03:00.3]} 3... e5 {[%clk 0:02:53]} 4.
d3 {[%clk 0:02:59.7]} 4... Bd6 {[%clk 0:02:53]} 5. Bg2 {[%clk 0:02:59.7]} 5...
Nge7 {[%clk 0:02:51.7]} 6. Nh3 {[%clk 0:02:59.5]} 6... Bc7 {[%clk 0:02:38.9]} 7.
O-O {[%clk 0:02:52.7]} 7... O-O {[%clk 0:02:33.4]} 8. f4 {[%clk 0:02:47.4]} 8...
exf4 {[%clk 0:02:33.1]} 9. Nxf4 {[%clk 0:02:46.8]} 9... Bxf4 {[%clk 0:02:08.1]}
10. Bxf4 {[%clk 0:02:44.6]} 10... d6 {[%clk 0:02:07.5]} 11. h3 {[%clk
0:02:23.1]} 11... Ng6 {[%clk 0:02:03.9]} 12. Bg3 {[%clk 0:02:19.5]} 12... Be6
{[%clk 0:02:03.3]} 13. Ne2 {[%clk 0:02:16.6]} 13... d5 {[%clk 0:01:46.8]} 14.
Nc3 {[%clk 0:02:02.5]} 14... d4 {[%clk 0:01:43.7]} 15. Ne2 {[%clk 0:02:01.5]}
15... Nce5 {[%clk 0:01:42.2]} 16. b3 {[%clk 0:01:58.7]} 16... a5 {[%clk
0:01:37.4]} 17. a4 {[%clk 0:01:57.9]} 17... Qe7 {[%clk 0:01:21.4]} 18. Nf4
{[%clk 0:01:56.3]} 18... Nxf4 {[%clk 0:01:21]} 19. Bxf4 {[%clk 0:01:56.6]} 19...
Ng6 {[%clk 0:01:21]} 20. Bg3 {[%clk 0:01:56.8]} 20... Bd7 {[%clk 0:01:10.6]} 21.
Qe1 {[%clk 0:01:55.4]} 21... b6 {[%clk 0:01:07.9]} 22. Kh1 {[%clk 0:01:08.7]}
22... Rae8 {[%clk 0:01:07.3]} 23. Qf2 {[%clk 0:01:04.3]} 23... Ne5 {[%clk
0:01:04.2]} 24. Rae1 {[%clk 0:00:55.9]} 24... f6 {[%clk 0:01:03.8]} 25. Bf4
{[%clk 0:00:52.4]} 25... h6 {[%clk 0:00:49.5]} 26. Qg3 {[%clk 0:00:52.2]} 26...
Kh7 {[%clk 0:00:45.5]} 27. Re2 {[%clk 0:00:39.4]} 27... g5 {[%clk 0:00:38]} 28.
Bd2 {[%clk 0:00:37.2]} 28... Ng6 {[%clk 0:00:37]} 29. Ref2 {[%clk 0:00:19.6]}
29... Kg7 {[%clk 0:00:36.8]} 30. Bf3 {[%clk 0:00:13.2]} 30... Qe5 {[%clk
0:00:36.6]} 31. Kg2 {[%clk 0:00:08.4]} 31... Nh4+ {[%clk 0:00:35.6]} 32. Kh2
{[%clk 0:00:08.6]} 32... h5 {[%clk 0:00:31.6]} 33. Qxe5 {[%clk 0:00:07.4]} 33...
Rxe5 {[%clk 0:00:28.5]} 34. gxh5 {[%clk 0:00:06.7]} 34... Nxf3+ {[%clk
0:00:28.5]} 35. Rxf3 {[%clk 0:00:06.8]} 35... Re6 {[%clk 0:00:19.1]} 36. Bxg5
{[%clk 0:00:04]} 36... Rf7 {[%clk 0:00:15.5]} 37. h4 {[%clk 0:00:02.9]} 37...
Be8 {[%clk 0:00:15.7]} 38. h6+ {[%clk 0:00:02.4]} 38... Kg6 {[%clk 0:00:15.8]}
39. Be3 {[%clk 0:00:01.5]} 39... Kh7 {[%clk 0:00:16.1]} 40. Bd2 {[%clk
0:00:01.6]} 40... Bc6 {[%clk 0:00:15.9]} 41. Rg1 {[%clk 0:00:01.7]} 41... Ree7
{[%clk 0:00:14.4]} 42. Rfg3 {[%clk 0:00:02]} 42... f5 {[%clk 0:00:13.5]} 43.
Rg7+ {[%clk 0:00:01.1]} 43... Rxg7 {[%clk 0:00:13.7]} 44. Rxg7+ {[%clk
0:00:01.7]} 44... Rxg7 {[%clk 0:00:13.7]} 45. hxg7 {[%clk 0:00:02.4]} 45... fxe4
{[%clk 0:00:14.6]} 0-1

[Event "Early-Titled-Tuesday-Blitz-October-03-2023"]
[Site "Chess.com"]
[Date "2023.10.03"]
[Round "3"]
[White "BashirovKemal"]
[Black "vladislavkovalev"]
[Result "1-0"]
[WhiteElo "2666"]
[BlackElo "2855"]
[TimeControl "180+1"]
[EndTime "8:29:17 PDT"]
[Termination "BashirovKemal won on time"]

1. d4 {[%clk 0:03:00.9]} 1... Nf6 {[%clk 0:02:59.5]} 2. c4 {[%clk 0:02:59.8]}
2... e6 {[%clk 0:02:59.8]} 3. Nf3 {[%clk 0:02:59.2]} 3... Bb4+ {[%clk
0:02:59.2]} 4. Bd2 {[%clk 0:02:58.6]} 4... Qe7 {[%clk 0:02:59]} 5. a3 {[%clk
0:02:57.4]} 5... Bxd2+ {[%clk 0:02:59]} 6. Nbxd2 {[%clk 0:02:58.3]} 6... d5
{[%clk 0:02:55.8]} 7. e3 {[%clk 0:02:54.5]} 7... O-O {[%clk 0:02:55.6]} 8. Bd3
{[%clk 0:02:54.5]} 8... b6 {[%clk 0:02:45.2]} 9. O-O {[%clk 0:02:49.6]} 9... Bb7
{[%clk 0:02:45.8]} 10. Rc1 {[%clk 0:02:49.1]} 10... c5 {[%clk 0:02:42.8]} 11.
dxc5 {[%clk 0:02:46.1]} 11... bxc5 {[%clk 0:02:43.7]} 12. cxd5 {[%clk
0:02:45.2]} 12... exd5 {[%clk 0:02:44.6]} 13. Bb1 {[%clk 0:02:41]} 13... Nbd7
{[%clk 0:02:43.7]} 14. Re1 {[%clk 0:02:38.6]} 14... Rab8 {[%clk 0:02:36.6]} 15.
Qc2 {[%clk 0:02:31.8]} 15... Rfc8 {[%clk 0:02:26.2]} 16. h3 {[%clk 0:02:27.2]}
16... Nf8 {[%clk 0:02:16.7]} 17. Nf1 {[%clk 0:02:19.8]} 17... Ne6 {[%clk
0:02:14.3]} 18. Ng3 {[%clk 0:02:18.1]} 18... g6 {[%clk 0:02:15]} 19. Qa4 {[%clk
0:02:13.5]} 19... Bc6 {[%clk 0:01:58.5]} 20. Qh4 {[%clk 0:02:06.8]} 20... Rxb2
{[%clk 0:01:53.9]} 21. Ne5 {[%clk 0:02:03.2]} 21... Kg7 {[%clk 0:01:30.3]} 22.
Nxc6 {[%clk 0:01:27.7]} 22... Rxc6 {[%clk 0:01:30.4]} 23. e4 {[%clk 0:01:27.7]}
23... d4 {[%clk 0:01:23.1]} 24. e5 {[%clk 0:01:25.1]} 24... Nd5 {[%clk 0:01:12]}
25. Qe4 {[%clk 0:01:23.6]} 25... Qd7 {[%clk 0:01:10.6]} 26. Qg4 {[%clk
0:01:05.6]} 26... Kh8 {[%clk 0:01:00.8]} 27. h4 {[%clk 0:01:02.4]} 27... Nc3
{[%clk 0:00:46.5]} 28. Be4 {[%clk 0:00:42.1]} 28... Rcb6 {[%clk 0:00:39.5]} 29.
h5 {[%clk 0:00:37.9]} 29... Qe7 {[%clk 0:00:38.2]} 30. hxg6 {[%clk 0:00:32.8]}
30... hxg6 {[%clk 0:00:39.1]} 31. f4 {[%clk 0:00:28.1]} 31... Ng7 {[%clk
0:00:15.6]} 32. f5 {[%clk 0:00:15]} 32... gxf5 {[%clk 0:00:16.1]} 33. Nxf5
{[%clk 0:00:14.6]} 33... Nxf5 {[%clk 0:00:16.4]} 34. Qxf5 {[%clk 0:00:13.4]}
34... Rh6 {[%clk 0:00:14.7]} 35. Qc8+ {[%clk 0:00:07.8]} 35... Kg7 {[%clk
0:00:15]} 36. Qg4+ {[%clk 0:00:08.5]} 36... Kf8 {[%clk 0:00:11.2]} 37. Qc8+
{[%clk 0:00:08.7]} 37... Kg7 {[%clk 0:00:06]} 38. Qg4+ {[%clk 0:00:08.9]} 38...
Rg6 {[%clk 0:00:06.9]} 39. Bxg6 {[%clk 0:00:08.8]} 39... fxg6 {[%clk 0:00:07.8]}
40. e6 {[%clk 0:00:06.7]} 40... Nd5 {[%clk 0:00:07.5]} 41. Qe4 {[%clk
0:00:05.2]} 41... Ne3 {[%clk 0:00:04.1]} 42. Qe5+ {[%clk 0:00:05]} 42... Qf6
{[%clk 0:00:03.8]} 43. Rxe3 {[%clk 0:00:03.3]} 43... dxe3 {[%clk 0:00:02.2]} 44.
Qxe3 {[%clk 0:00:04.2]} 1-0

[Event "Early-Titled-Tuesday-Blitz-October-03-2023"]
[Site "Chess.com"]
[Date "2023.10.03"]
[Round "3"]
[White "aistrel"]
[Black "MAGMAchess02"]
[Result "1-0"]
[WhiteElo "2568"]
[BlackElo "2353"]
[TimeControl "180+1"]
[EndTime "8:29:17 PDT"]
[Termination "aistrel won by resignation"]

1. d4 {[%clk 0:02:47.3]} 1... Nf6 {[%clk 0:02:59.2]} 2. f3 {[%clk 0:02:47.4]}
2... c5 {[%clk 0:02:56.1]} 3. d5 {[%clk 0:02:47.4]} 3... e6 {[%clk 0:02:42.9]}
4. Nc3 {[%clk 0:02:47.4]} 4... exd5 {[%clk 0:02:40.1]} 5. Nxd5 {[%clk
0:02:47.5]} 5... Nc6 {[%clk 0:02:39.5]} 6. e4 {[%clk 0:02:47.9]} 6... Be7 {[%clk
0:02:39.6]} 7. Bf4 {[%clk 0:02:47.8]} 7... d6 {[%clk 0:02:26]} 8. Nxe7 {[%clk
0:02:46.8]} 8... Kxe7 {[%clk 0:02:23.3]} 9. Bc4 {[%clk 0:02:41.3]} 9... Be6
{[%clk 0:02:22.7]} 10. Qe2 {[%clk 0:02:35.6]} 10... Ne5 {[%clk 0:02:18.2]} 11.
Bxe6 {[%clk 0:02:32.5]} 11... fxe6 {[%clk 0:02:17.7]} 12. Bxe5 {[%clk
0:02:32.5]} 12... dxe5 {[%clk 0:02:17.3]} 13. Qb5 {[%clk 0:02:26.5]} 13... Qb6
{[%clk 0:02:15.2]} 14. Qxb6 {[%clk 0:02:22.7]} 14... axb6 {[%clk 0:02:16.1]} 15.
Ne2 {[%clk 0:02:20.2]} 15... Rhd8 {[%clk 0:02:13.3]} 16. Nc3 {[%clk 0:02:19.7]}
16... Rd4 {[%clk 0:02:03.7]} 17. b3 {[%clk 0:02:16.4]} 17... Rad8 {[%clk
0:01:55.3]} 18. Rd1 {[%clk 0:02:14.8]} 18... g5 {[%clk 0:01:48]} 19. Ke2 {[%clk
0:02:14]} 19... g4 {[%clk 0:01:39.7]} 20. Na4 {[%clk 0:02:00.3]} 20... gxf3+
{[%clk 0:01:32.8]} 21. gxf3 {[%clk 0:02:01.2]} 21... Nh5 {[%clk 0:01:27.6]} 22.
Rxd4 {[%clk 0:01:54.6]} 22... Nf4+ {[%clk 0:01:24.1]} 23. Ke3 {[%clk 0:01:40]}
23... cxd4+ {[%clk 0:01:22.5]} 24. Kd2 {[%clk 0:01:40]} 24... b5 {[%clk
0:01:19.3]} 25. Nc5 {[%clk 0:01:39.5]} 25... b6 {[%clk 0:00:45.7]} 26. Nd3
{[%clk 0:01:36.9]} 26... Nxd3 {[%clk 0:00:44.8]} 27. cxd3 {[%clk 0:01:36.9]}
27... Rg8 {[%clk 0:00:44.2]} 28. Re1 {[%clk 0:01:37.5]} 28... Kd6 {[%clk
0:00:40.2]} 29. Re2 {[%clk 0:01:28.3]} 29... Rg1 {[%clk 0:00:32.9]} 30. Re1
{[%clk 0:01:17.1]} 30... Rg2+ {[%clk 0:00:32.4]} 31. Re2 {[%clk 0:01:17.2]}
31... Rg1 {[%clk 0:00:32.2]} 32. Re1 {[%clk 0:01:17.6]} 32... Rg7 {[%clk
0:00:32.7]} 33. Re2 {[%clk 0:01:11.4]} 33... Kc5 {[%clk 0:00:32.2]} 34. Kc2
{[%clk 0:01:09.9]} 34... Rg1 {[%clk 0:00:22.1]} 35. Rf2 {[%clk 0:01:10.1]} 35...
Kb4 {[%clk 0:00:19.4]} 36. Kb2 {[%clk 0:01:10.4]} 36... Rd1 {[%clk 0:00:18.5]}
37. Rc2 {[%clk 0:00:45.1]} 37... Rxd3 {[%clk 0:00:15.4]} 38. a3+ {[%clk
0:00:45.7]} 38... Ka5 {[%clk 0:00:12.9]} 39. Rc8 {[%clk 0:00:46.6]} 39... b4
{[%clk 0:00:08.4]} 40. a4 {[%clk 0:00:46.9]} 40... b5 {[%clk 0:00:08.4]} 41.
Ra8+ {[%clk 0:00:47.4]} 41... Kb6 {[%clk 0:00:08.7]} 42. Rb8+ {[%clk 0:00:48.3]}
42... Kc6 {[%clk 0:00:05]} 43. Rxb5 {[%clk 0:00:49.2]} 43... Rd2+ {[%clk
0:00:02.4]} 44. Kc1 {[%clk 0:00:48.8]} 44... Rxh2 {[%clk 0:00:02.2]} 45. Rxe5
{[%clk 0:00:48.1]} 45... Kd6 {[%clk 0:00:01.7]} 46. Rb5 {[%clk 0:00:48.6]} 46...
e5 {[%clk 0:00:01.6]} 47. Rxb4 {[%clk 0:00:48]} 47... Rf2 {[%clk 0:00:01.5]} 48.
a5 {[%clk 0:00:47.4]} 48... Rxf3 {[%clk 0:00:01.9]} 49. a6 {[%clk 0:00:48]}
49... Rf7 {[%clk 0:00:01.6]} 50. Ra4 {[%clk 0:00:44.1]} 50... Ra7 {[%clk
0:00:02]} 51. b4 {[%clk 0:00:44.2]} 51... Kc6 {[%clk 0:00:02.6]} 52. Ra5 {[%clk
0:00:44.7]} 52... Kb6 {[%clk 0:00:03.1]} 53. Rxe5 {[%clk 0:00:44.7]} 53... Kxa6
{[%clk 0:00:02.8]} 54. Ra5+ {[%clk 0:00:42.6]} 54... Kb6 {[%clk 0:00:02.7]} 55.
Rxa7 {[%clk 0:00:43.5]} 55... Kxa7 {[%clk 0:00:03.5]} 56. Kd2 {[%clk 0:00:44.4]}
56... Kb6 {[%clk 0:00:03.3]} 57. Kd3 {[%clk 0:00:45.3]} 57... h5 {[%clk
0:00:03.7]} 58. Kxd4 {[%clk 0:00:45.3]} 58... h4 {[%clk 0:00:04.3]} 59. Ke3
{[%clk 0:00:45.9]} 59... h3 {[%clk 0:00:05]} 60. Kf2 {[%clk 0:00:46.3]} 60... h2
{[%clk 0:00:05.6]} 61. Kg2 {[%clk 0:00:46.7]} 61... h1=Q+ {[%clk 0:00:05.5]} 62.
Kxh1 {[%clk 0:00:46.4]} 62... Kb5 {[%clk 0:00:06.2]} 63. e5 {[%clk 0:00:47]}
63... Kxb4 {[%clk 0:00:07]} 64. e6 {[%clk 0:00:47.6]} 64... Kc5 {[%clk
0:00:07.9]} 65. e7 {[%clk 0:00:48.3]} 65... Kd6 {[%clk 0:00:08.8]} 66. e8=Q
{[%clk 0:00:47.4]} 1-0

[Event "Early-Titled-Tuesday-Blitz-October-03-2023"]
[Site "Chess.com"]
[Date "2023.10.03"]
[Round "3"]
[White "NaciSAN"]
[Black "Vision_64"]
[Result "1/2-1/2"]
[WhiteElo "2126"]
[BlackElo "2348"]
[TimeControl "180+1"]
[EndTime "8:29:20 PDT"]
[Termination "Game drawn - insufficient material"]

1. e4 {[%clk 0:03:00.9]} 1... e6 {[%clk 0:02:57.1]} 2. d3 {[%clk 0:03:00]} 2...
d5 {[%clk 0:02:56.8]} 3. Nd2 {[%clk 0:03:00.4]} 3... e5 {[%clk 0:02:52.7]} 4.
Ngf3 {[%clk 0:02:58.1]} 4... Nc6 {[%clk 0:02:50.3]} 5. Be2 {[%clk 0:02:57]} 5...
Nf6 {[%clk 0:02:46.8]} 6. O-O {[%clk 0:02:56.8]} 6... Bc5 {[%clk 0:02:45.1]} 7.
h3 {[%clk 0:02:55.3]} 7... O-O {[%clk 0:02:44.5]} 8. a3 {[%clk 0:02:53.6]} 8...
a6 {[%clk 0:02:42.8]} 9. b4 {[%clk 0:02:52.4]} 9... Ba7 {[%clk 0:02:42.6]} 10.
Bb2 {[%clk 0:02:52.6]} 10... Re8 {[%clk 0:02:39.8]} 11. exd5 {[%clk 0:02:48.3]}
11... Qxd5 {[%clk 0:02:36.3]} 12. c4 {[%clk 0:02:47.7]} 12... Qd8 {[%clk
0:02:32]} 13. c5 {[%clk 0:02:39.9]} 13... Nd5 {[%clk 0:02:23.8]} 14. Nc4 {[%clk
0:02:36.6]} 14... f6 {[%clk 0:02:21.9]} 15. Re1 {[%clk 0:02:32]} 15... Bf5
{[%clk 0:02:18.9]} 16. Bf1 {[%clk 0:02:29.7]} 16... Nf4 {[%clk 0:02:18.5]} 17.
d4 {[%clk 0:02:17.5]} 17... exd4 {[%clk 0:02:01.1]} 18. Rxe8+ {[%clk 0:02:18.4]}
18... Qxe8 {[%clk 0:02:00.8]} 19. Nxd4 {[%clk 0:02:18.5]} 19... Rd8 {[%clk
0:01:59.6]} 20. Qf3 {[%clk 0:02:04]} 20... Qe4 {[%clk 0:01:43.4]} 21. Nxc6
{[%clk 0:01:50.2]} 21... Qxf3 {[%clk 0:01:41.7]} 22. gxf3 {[%clk 0:01:49.5]}
22... bxc6 {[%clk 0:01:42]} 23. Kh2 {[%clk 0:01:37.5]} 23... Kf7 {[%clk
0:01:30.4]} 24. Re1 {[%clk 0:01:33.2]} 24... g5 {[%clk 0:01:26.1]} 25. Na5
{[%clk 0:01:20.3]} 25... Rd2 {[%clk 0:01:21.6]} 26. Bc4+ {[%clk 0:01:08.8]}
26... Kg6 {[%clk 0:01:19.4]} 27. Bc1 {[%clk 0:00:55.2]} 27... Rxf2+ {[%clk
0:01:18.8]} 28. Kh1 {[%clk 0:00:54.5]} 28... Rxf3 {[%clk 0:00:48.2]} 29. Bxf4
{[%clk 0:00:51.9]} 29... Rxf4 {[%clk 0:00:47.3]} 30. Rf1 {[%clk 0:00:43.6]}
30... Rxf1+ {[%clk 0:00:43.5]} 31. Bxf1 {[%clk 0:00:43.4]} 31... Bd7 {[%clk
0:00:29.3]} 32. Bg2 {[%clk 0:00:39.8]} 32... Kf7 {[%clk 0:00:21.3]} 33. Kh2
{[%clk 0:00:39.5]} 33... Ke6 {[%clk 0:00:17.6]} 34. Bxc6 {[%clk 0:00:39.2]}
34... f5 {[%clk 0:00:16.5]} 35. Bb7 {[%clk 0:00:27.8]} 35... Bb5 {[%clk
0:00:15.2]} 36. Nc6 {[%clk 0:00:26]} 36... Bxc6 {[%clk 0:00:14.8]} 37. Bxc6
{[%clk 0:00:26.9]} 37... a5 {[%clk 0:00:14.8]} 38. Kg2 {[%clk 0:00:26]} 38...
axb4 {[%clk 0:00:14.9]} 39. axb4 {[%clk 0:00:25.6]} 39... Ke5 {[%clk 0:00:15.5]}
40. Kf3 {[%clk 0:00:22]} 40... Kd4 {[%clk 0:00:15.7]} 41. Bd7 {[%clk 0:00:19.2]}
41... f4 {[%clk 0:00:15.7]} 42. Kg4 {[%clk 0:00:16.8]} 42... Kc4 {[%clk
0:00:15.6]} 43. Kxg5 {[%clk 0:00:16]} 43... f3 {[%clk 0:00:16.1]} 44. Bg4 {[%clk
0:00:13.8]} 44... Kxb4 {[%clk 0:00:14.6]} 45. Bxf3 {[%clk 0:00:13.8]} 45... Bxc5
{[%clk 0:00:14.4]} 46. Kh6 {[%clk 0:00:11.9]} 46... Be3+ {[%clk 0:00:13.7]} 47.
Kxh7 {[%clk 0:00:11.4]} 47... c5 {[%clk 0:00:14.5]} 48. Bd5 {[%clk 0:00:11.1]}
48... c4 {[%clk 0:00:14.6]} 49. Bxc4 {[%clk 0:00:11.3]} 49... Kxc4 {[%clk
0:00:14.8]} 50. h4 {[%clk 0:00:11.5]} 50... Kd5 {[%clk 0:00:15.4]} 51. h5 {[%clk
0:00:12.4]} 51... Ke5 {[%clk 0:00:15.5]} 52. h6 {[%clk 0:00:13.3]} 52... Bxh6
{[%clk 0:00:14.9]} 1/2-1/2